Workbook

Sheet Explanation
B2: Product Mix Application

Sheet Data
A1: Data for Woodworks
A3: Data on products: unit price, resources required per unit, minimum and maximum units | M3: Data on resources
A4: Product code | B4: Description | C4: UnitPrice | D4: UnitCost | E4: MinUnits | F4: MaxUnits | G4: SrLaborHrs | H4: JrLaborHrs | I4: MachineHrs | J4: OakFt | K4: CherryFt | M4: Resource | N4: UnitCost | O4: Availability
A5: 1243 | B5: Oak end table | C5: 190 | D5: =MMULT(G5:K5,$N$5:$N$9) -> 129.6 | E5: 20 | F5: 40 | G5: 0.5 | H5: 1.3 | I5: 0.4 | J5: 2.8 | K5: 0 | M5: SrLaborHrs | N5: 20 | O5: 263
A6: 2243 | B6: Cherry end table | C6: 203 | D6: 146.4 | F6: 30 | G6: 0.7 | H6: 1.2 | I6: 0.4 | J6: 0 | K6: 2.8 | M6: JrLaborHrs | N6: 12 | O6: 450
A7: 1456 | B7: Oak rocking chair | C7: 371 | D7: 276.8 | E7: 5 | F7: 20 | G7: 2.1 | H7: 2.9 | I7: 1.2 | J7: 5.2 | K7: 0 | M7: MachineHrs | N7: 15 | O7: 225
A8: 2456 | B8: Cherry rocking chair | C8: 407 | D8: 308.4 | E8: 5 | F8: 15 | G8: 2.5 | H8: 2.7 | I8: 1.2 | J8: 0 | K8: 5.2 | M8: OakFt | N8: 35 | O8: 488
A9: 1372 | B9: Oak coffee table | C9: 238 | D9: 167.4 | E9: 10 | F9: 30 | G9: 1.3 | H9: 1.7 | I9: 0.6 | J9: 3.2 | K9: 0 | M9: CherryFt | N9: 40 | O9: 638
A10: 2372 | B10: Cherry coffee table | C10: 259 | D10: 185 | F10: 10 | G10: 1.5 | H10: 1.5 | I10: 0.6 | J10: 0 | K10: 3.2
A11: 1531 | B11: Oak dining table | C11: 837 | D11: 647.9 | G11: 1.9 | H11: 3.2 | I11: 1.7 | J11: 15.6 | K11: 0
A12: 2531 | B12: Cherry dining table | C12: 964 | D12: 723.6 | F12: 10 | G12: 2.1 | H12: 2.8 | I12: 1.6 | J12: 0 | K12: 15.6
A13: 1635 | B13: Oak desk | C13: 1084 | D13: 840.6 | E13: 5 | G13: 4.3 | H13: 5.8 | I13: 3.2 | J13: 18.2 | K13: 0
A14: 2635 | B14: Cherry desk | C14: 1214 | D14: 937.7 | E14: 5 | G14: 4.5 | H14: 5.6 | I14: 3.5 | J14: 0 | K14: 18.2
A15: 1367 | B15: Oak bookshelves | C15: 401 | D15: 314.5 | E15: 15 | F15: 30 | G15: 1.8 | H15: 2.5 | I15: 2.1 | J15: 6.2 | K15: 0
A16: 2367 | B16: Cherry bookshelves | C16: 455 | D16: 349 | F16: 40 | G16: 1.9 | H16: 2.5 | I16: 2.2 | J16: 0 | K16: 6.2

Sheet Model
A1: Model formulation
A3: Product mix
A4: Product code | B4: 2243 | C4: 2456 | D4: 1372 | E4: 1531 | F4: 2531
A5: Min | B5: 0 | C5: 5 | D5: 10 | E5: 0 | F5: 0
B6: <= | C6: <= | D6: <= | E6: <= | F6: <=
A7: Produced | B7: 30 | C7: 15 | D7: 30 | E7: 25 | F7: 10
B8: <= | C8: <= | D8: <= | E8: <= | F8: <=
A9: Max | B9: 30 | C9: 15 | D9: 30 | E9: 31 | F9: 10
A11: UnitPrice | B11: 203 | C11: 407 | D11: 238 | E11: 837 | F11: 964
A12: UnitCost | B12: 146.4 | C12: 308.4 | D12: 167.4 | E12: 647.9 | F12: 723.6
A13: UnitProfit | B13: =B11-B12 -> 56.6 | C13: =C11-C12 -> 98.6 | D13: =D11-D12 -> 70.6 | E13: =E11-E12 -> 189.1 | F13: =F11-F12 -> 240.4
A15: Resource usage | F15: Monetary summary | I15: Resources used per unit of products
A16: Resource | B16: Used | D16: Available | F16: Total revenue | G16: =SUMPRODUCT(Produced,UnitRev) -> 49900 | I16: Resource/Product code | J16: 2243 | K16: 2456 | L16: 1372 | M16: 1531 | N16: 2531
A17: SrLaborHrs | B17: =SUMPRODUCT(Produced,$J$17:$N$17) -> 166 | C17: <= | D17: 263 | F17: Total cost | G17: =SUMPRODUCT(Produced,UnitCost) -> 37473.5 | I17: SrLaborHrs | J17: 0.7 | K17: 2.5 | L17: 1.3 | M17: 1.9 | N17: 2.1
A18: JrLaborHrs | B18: =SUMPRODUCT(Produced,$J$18:$N$18) -> 235.5 | C18: <= | D18: 450 | F18: Total profit | G18: =SUMPRODUCT(Produced,UnitProfit) -> 12426.5 | I18: JrLaborHrs | J18: 1.2 | K18: 2.7 | L18: 1.7 | M18: 3.2 | N18: 2.8
A19: MachineHrs | B19: =SUMPRODUCT(Produced,$J$19:$N$19) -> 106.5 | C19: <= | D19: 225 | I19: MachineHrs | J19: 0.4 | K19: 1.2 | L19: 0.6 | M19: 1.7 | N19: 1.6
A20: OakFt | B20: =SUMPRODUCT(Produced,$J$20:$N$20) -> 486 | C20: <= | D20: 488 | I20: OakFt | J20: 0 | K20: 0 | L20: 3.2 | M20: 15.6 | N20: 0
A21: CherryFt | B21: =SUMPRODUCT(Produced,$J$21:$N$21) -> 318 | C21: <= | D21: 638 | I21: CherryFt | J21: 2.8 | K21: 5.2 | L21: 0 | M21: 0 | N21: 15.6

Sheet Report
A1: Optimal product mix
A3: Monetary summary
A4: Total revenue | B4: 49900
A5: Total cost | B5: 37473.5
A6: Total profit | B6: 12426.5
A8: Product data | H8: Resource data
A9: Product code | B9: Description | C9: Units produced | D9: Revenue | E9: Cost | F9: Profit | H9: Resource | I9: Used | J9: Available | K9: Left over
A10: 2243 | B10: Cherry end table | C10: 30 | D10: 6090 | E10: 4392 | F10: 1698 | H10: SrLaborHrs | I10: 166 | J10: 263 | K10: =J10-I10 -> 97
A11: 2456 | B11: Cherry rocking chair | C11: 15 | D11: 6105 | E11: 4626 | F11: 1479 | H11: JrLaborHrs | I11: 235.5 | J11: 450 | K11: =J11-I11 -> 214.5
A12: 1372 | B12: Oak coffee table | C12: 30 | D12: 7140 | E12: 5022 | F12: 2118 | H12: MachineHrs | I12: 106.5 | J12: 225 | K12: =J12-I12 -> 118.5
A13: 1531 | B13: Oak dining table | C13: 25 | D13: 20925 | E13: 16197.5 | F13: 4727.5 | H13: OakFt | I13: 486 | J13: 488 | K13: =J13-I13 -> 2
A14: 2531 | B14: Cherry dining table | C14: 10 | D14: 9640 | E14: 7236 | F14: 2404 | H14: CherryFt | I14: 318 | J14: 638 | K14: =J14-I14 -> 320
